bitfinex-derivatives/quotes_SOLF0:USTF0_20250125
["timestamp","ask_amount","ask_price","bid_price","bid_amount"]
[1737792600241,4.0212,248.72,248.68,0.02619774]
[1737792600434,4.14741751,248.73,248.68,0.02619774]
[1737792600735,4.0215,248.7,248.68,0.02619774]
[1737792605644,4.0212,248.72,248.68,0.02619774]
[1737792605843,4.14741751,248.73,248.68,0.02619774]
[1737792606144,5.9544252,248.71,248.62,5.9544252]
[1737792607144,5.9544252,248.71,248.64,5.98251909]
[1737792607547,0.02579689,248.7,248.64,5.98251909]
[1737792608047,4.0216,248.69,248.64,5.98251909]
[1737792608550,4.0216,248.69,248.64,0.02809389]
[1737792609054,5.9544252,248.69,248.64,0.02809389]
[1737792609251,4.0223,248.65,248.64,0.02809389]
[1737792611449,9.9767252,248.65,248.64,0.02809389]
[1737792611752,5.9544252,248.65,248.54,5.9544252]
[1737792611955,5.9544252,248.61,248.54,5.9544252]
[1737792612154,4.0233,248.59,248.52,9.20682833]
[1737792612354,5.9544252,248.61,248.52,5.9544252]
[1737792612658,4.0236,248.57,248.54,0.02547618]
[1737792612859,4.0236,248.57,248.52,5.9544252]
[1737792613054,0.02873922,248.58,248.53,0.02586173]
[1737792613455,5.9544252,248.57,248.53,0.02586173]
[1737792613853,4.0239,248.55,248.53,0.02586173]
[1737792614655,4.0239,248.55,248.48,5.9544252]
[1737792614857,9.9783252,248.55,248.48,5.9544252]
[1737792615253,9.9783252,248.55,248.45,2.64]
[1737792615254,9.9787252,248.53,248.44,9.9800252]
[1737792615565,9.9787252,248.53,248.44,5.9544252]
[1737792615862,10.00805504,248.51,248.46,0.03003505]
[1737792616052,0.02902984,248.51,248.46,5.98446025]
[1737792616558,0.02902984,248.51,248.46,0.03003505]
[1737792616760,5.98345504,248.51,248.46,0.03003505]
[1737792616954,10.00805504,248.51,248.46,0.03003505]
[1737792617161,6.13902984,248.51,248.48,5.9544252]
[1737792619156,6.13902984,248.51,248.46,5.98446025]
[1737792619363,5.9544252,248.5,248.46,0.03003505]
[1737792621967,6.13902984,248.51,248.47,5.9544252]
[1737792622169,6.13902984,248.51,248.49,5.9544252]
[1737792622363,6.13902984,248.51,248.47,5.9544252]
[1737792622662,6.13902984,248.51,248.46,0.03003505]
[1737792626656,4.0247,248.5,248.46,0.03003505]
[1737792627057,6.13902984,248.51,248.46,0.03003505]
[1737792627761,4.0247,248.5,248.46,0.03003505]
[1737792628664,9.9793252,248.49,248.46,0.03003505]
[1737792630868,16.11815504,248.51,248.46,0.03003505]
[1737792631666,4.0247,248.5,248.46,0.03003505]
[1737792631963,5.9544252,248.48,248.39,5.9544252]
[1737792632171,5.9544252,248.43,248.36,5.9544252]
[1737792632369,5.9544252,248.41,248.34,5.9544252]
[1737792632967,5.9544252,248.43,248.36,5.9544252]
[1737792633163,0.02618746,248.4,248.36,5.9544252]
[1737792633370,5.9544252,248.43,248.36,5.9544252]
[1737792633566,0.02613913,248.4,248.38,5.9544252]
[1737792633770,5.9544252,248.47,248.38,5.9544252]
[1737792633970,0.02860649,248.41,248.38,5.9544252]
[1737792635073,0.02860649,248.41,248.37,0.02784725]
[1737792635471,6.11,248.51,248.4,5.9544252]
[1737792635672,6.11,248.51,248.31,14.71]
[1737792635673,1.3612,248.66,248.54,4.0239]
[1737792635970,1.3612,248.66,248.58,5.9544252]
[1737792636676,0.02643372,248.64,248.6,0.02542825]
[1737792638876,0.02643372,248.64,248.61,9.3171804]
[1737792639077,0.02643372,248.64,248.62,4.0226]
[1737792639671,5.99,248.66,248.61,9.3171804]
[1737792639875,5.99,248.66,248.65,9.3171804]
[1737792642078,0.03017204,248.68,248.66,4.0221]
[1737792643176,2.6049,248.79,248.68,4.0216]
[1737792643476,6.6649,248.79,248.7,9.3171804]
[1737792644073,4.06,248.79,248.73,9.3171804]
[1737792644277,0.02807674,248.77,248.73,9.3171804]
[1737792648578,0.02807674,248.77,248.72,0.03029699]
[1737792650985,0.02807674,248.77,248.73,9.3171804]
[1737792652186,4.0171,248.97,248.84,4.0191]
[1737792652380,1.3602,248.98,248.83,2.7]
[1737792652575,1.3602,248.98,248.82,12.0171804]
[1737792652775,9.3171804,248.96,248.82,12.0171804]
[1737792652981,9.3171804,248.93,248.82,2.7]
[1737792653181,1.3083,248.92,248.82,2.7]
[1737792653383,4.0199,248.8,248.7,13.3385804]
[1737792653579,9.3171804,248.86,248.7,9.3171804]
[1737792653782,2.7075,248.85,248.7,9.3171804]
[1737792653977,4.0199,248.8,248.7,9.3171804]
[1737792654488,0.02573927,248.77,248.73,0.02824077]
[1737792660888,4.04613927,248.77,248.73,0.02824077]
[1737792661081,0.02573927,248.77,248.73,0.02824077]
[1737792662183,5.83,248.92,248.76,18.6343608]
[1737792662385,9.3171804,249.08,248.91,9.3171804]
[1737792662687,5.3628,249.09,248.96,4.0171]
[1737792663189,1.3477,249.09,248.92,2.78]
[1737792663388,0.02944506,249.05,249.0,0.02654553]
[1737792663693,5.94944506,249.05,249.0,0.02654553]
[1737792666787,5.94944506,249.05,249.02,9.3171804]
[1737792673998,9.3171804,249.27,249.02,9.3171804]
[1737792674194,1.3864,249.26,249.09,9.3171804]
[1737792674390,1.3864,249.26,249.12,9.3171804]
[1737792674595,1.3864,249.26,249.09,12.1171804]
[1737792675100,9.3171804,249.12,248.97,9.3171804]
[1737792675295,3.931,249.11,248.94,9.3171804]
[1737792675495,9.3171804,249.05,248.92,2.8]
[1737792676196,0.03034943,249.01,248.96,0.02617885]
[1737792676397,0.03034943,249.01,248.85,9.3171804]
[1737792676594,4.0171,248.97,248.85,9.3171804]
[1737792676800,1.3324,248.96,248.85,9.3171804]
[1737792677301,1.3324,248.96,248.88,9.3171804]
[1737792677697,0.02950105,248.94,248.9,0.03011269]
[1737792683008,0.02950105,248.94,248.93,9.3171804]
[1737792684610,2.6665,249.1,248.93,9.3171804]
[1737792684809,1.3365,249.09,248.93,9.3171804]
[1737792685209,4.016,249.04,248.94,4.0174]
[1737792685412,1.3365,249.09,248.93,9.3171804]
[1737792685714,0.02668903,249.03,248.99,0.02840186]
[1737792685913,4.0164,249.02,248.99,0.02840186]
[1737792687114,0.02668903,249.03,248.99,0.02840186]
[1737792688205,9.3171804,249.0,248.84,9.3171804]
[1737792688409,2.685,248.99,248.84,9.3171804]
[1737792688806,4.0173,248.96,248.86,4.0189]
[1737792689007,9.3171804,248.96,248.8,9.3171804]
[1737792689316,0.02660218,248.9,248.86,0.02872474]
[1737792693720,0.02660218,248.9,248.88,9.3171804]
[1737792694021,1.3093,248.99,248.88,18.6343608]
[1737792694223,1.3093,248.99,248.94,9.3171804]
[1737792694813,1.3093,248.99,248.92,2.84]
[1737792695018,1.33696882,248.99,248.94,0.03078969]
[1737792695219,1.26,248.98,248.94,0.03078969]
[1737792696721,4.0173,248.96,248.94,0.03078969]
[1737792697020,1.26,248.98,248.94,0.03078969]
[1737792697425,4.0171,248.97,248.94,0.03078969]
[1737792697626,1.26,248.98,248.92,2.84]
[1737792697923,1.2778,248.97,248.87,9.3171804]
[1737792698921,1.2778,248.97,248.9,0.02556763]
[1737792699721,1.2778,248.97,248.91,9.3171804]
[1737792702321,5.295,248.97,248.91,9.3171804]
[1737792702527,6.8778,248.97,248.91,9.3171804]
[1737792702922,6.8778,248.97,248.92,4.0179]
[1737792703323,6.8778,248.97,248.91,9.3171804]
[1737792704223,6.8778,248.97,248.91,13.3351804]
[1737792704424,6.8778,248.97,248.91,9.3171804]
[1737792704631,10.8949,248.97,248.91,9.3171804]
[1737792705027,6.8778,248.97,248.91,9.3171804]
[1737792705426,6.8778,248.97,248.9,0.02556763]
[1737792705826,4.0176,248.94,248.9,0.02556763]
[1737792706520,6.8778,248.97,248.9,0.02556763]
[1737792706723,4.0177,248.93,248.9,0.02556763]
[1737792706929,6.8778,248.97,248.9,0.02556763]
[1737792707229,0.02711297,248.94,248.9,0.02556763]
[1737792708228,9.3171804,248.92,248.77,9.3171804]
[1737792708529,9.3171804,248.92,248.73,149.59948037]
[1737792708730,4.0189,248.86,248.76,4.0204]
[1737792709127,9.3171804,248.92,248.76,4.0204]
[1737792709327,0.02660718,248.83,248.79,0.02836124]
[1737792709532,16.1949804,248.97,248.81,9.3171804]
[1737792709734,0.02532869,248.83,248.81,9.3171804]
[1737792709933,16.1949804,248.97,248.87,0.02739793]
[1737792710128,16.1949804,248.97,248.81,9.3171804]
[1737792710329,0.0291202,248.94,248.9,0.02784928]
[1737792710525,0.0291202,248.94,248.81,9.3171804]
[1737792710733,4.0181,248.91,248.82,4.0195]
[1737792710934,4.0181,248.91,248.81,9.3171804]
[1737792711135,5.6,248.97,248.86,9.3171804]
[1737792711332,5.6,248.97,248.87,4.0186]
[1737792711535,0.0292858,248.94,248.9,0.02530683]
[1737792713641,0.0292858,248.94,248.92,4.0177]
[1737792714335,9.3171804,249.15,249.02,4.0161]
[1737792714539,12.0005804,249.15,248.98,2.88]
[1737792714743,9.3171804,249.11,248.98,2.88]
[1737792715134,4.0152,249.09,248.98,2.88]
[1737792715538,0.02903005,249.06,249.01,0.02768396]
[1737792716345,4.04473005,249.06,249.01,0.02768396]
[1737792716843,0.02903005,249.06,249.01,0.02768396]
[1737792720846,14.85525542,249.05,248.95,2.92]
[1737792721141,2.7231,249.04,248.9,2.92]
[1737792721341,4.0165,249.01,248.9,2.92]
[1737792721537,2.7231,249.04,248.86,137.46229997]
[1737792721735,2.7231,249.04,248.87,3.64320515]
[1737792721736,14.85525542,249.01,248.87,3.64320515]
[1737792721941,0.02690577,248.97,248.93,0.02633219]
[1737792722146,0.02690577,248.97,248.86,2.92]
[1737792722347,0.02690577,248.97,248.93,0.02869741]
[1737792723045,14.88216119,248.97,248.86,2.92]
[1737792723249,4.0183,248.9,248.86,2.92]
[1737792723446,14.85525542,248.97,248.86,2.92]
[1737792723847,14.85525542,248.93,248.86,2.92]
[1737792724144,1.395,248.92,248.89,0.02607241]
[1737792724343,1.395,248.92,248.77,2.92]
[1737792724344,4.0189,248.86,248.77,2.92]
[1737792724548,4.0189,248.86,248.76,137.46229997]
[1737792724849,1.395,248.92,248.74,4.11983823]
[1737792725151,14.85525542,248.89,248.67,14.85525542]
[1737792725344,0.0303146,248.8,248.76,0.02978688]
[1737792725544,1.3745,248.88,248.76,0.02978688]
[1737792725545,14.85525542,248.85,248.76,0.02978688]
[1737792725752,0.02903511,248.8,248.76,0.02978688]
[1737792727645,4.04893511,248.8,248.76,0.02978688]
[1737792727849,0.02903511,248.8,248.76,0.02978688]
[1737792728050,14.85525542,248.77,248.6,11.55441289]
[1737792728350,14.85525542,248.77,248.61,4.0228]
[1737792728552,14.85525542,248.73,248.58,2.92]
[1737792728750,4.0216,248.7,248.58,2.92]
[1737792729251,0.02980327,248.66,248.62,0.03017941]
[1737792732045,0.02980327,248.66,248.64,4.0223]
[1737792733952,5.05980327,248.66,248.64,4.0223]
[1737792735750,5.05980327,248.66,248.62,4.05277941]
[1737792735954,5.05980327,248.66,248.62,0.03017941]
[1737792737555,5.05980327,248.66,248.64,4.0223]
[1737792745863,5.05980327,248.66,248.65,4.0223]
[1737792750569,3.27e-06,248.66,248.65,4.0223]
[1737792750761,9.3120988,248.83,248.65,0.72524038]
[1737792750962,9.3120988,248.83,248.68,9.3120988]
[1737792751158,9.3120988,248.83,248.72,4.021]
[1737792751470,9.3120988,248.83,248.64,9.3120988]
[1737792751767,0.02862674,248.76,248.71,0.03087155]
[1737792752065,0.86862674,248.76,248.71,0.03087155]
[1737792755963,0.86862674,248.76,248.74,4.0208]
[1737792757971,2.6119,248.87,248.76,4.0204]
[1737792758166,2.6119,248.87,248.72,9.3120988]
[1737792758368,2.6119,248.87,248.73,0.72450303]
[1737792758570,4.0182,248.9,248.8,4.0198]
[1737792758965,0.02549555,248.87,248.83,0.02796363]
[1737792769674,0.02549555,248.87,248.85,4.019]
[1737792771773,4.0171,248.98,248.88,4.0185]
[1737792771977,13.2225988,248.99,248.83,9.3120988]
[1737792772774,2.6245,248.99,248.91,9.3120988]
[1737792773082,0.03068383,248.93,248.89,0.02690268]
[1737792773276,9.3120988,249.11,248.8,2.84]
[1737792773277,4.0161,249.04,248.93,4.0177]
[1737792773483,0.03064534,248.93,248.89,0.025938]
[1737792773682,9.3120988,249.03,248.87,9.3120988]
[1737792773882,0.02678779,248.93,248.89,0.02830134]
[1737792774383,0.03080964,248.93,248.89,0.02830134]
[1737792776182,0.03080964,248.93,248.89,4.04660134]
[1737792776483,0.03080964,248.93,248.89,0.02830134]
[1737792779180,0.03080964,248.93,248.82,2.84]
[1737792779577,0.03080964,248.93,248.8,9.3120988]
[1737792779783,4.0179,248.92,248.82,4.0195]
[1737792780487,4.0181,248.91,248.85,0.03031634]
[1737792780682,0.03080964,248.93,248.85,0.03031634]
[1737792780883,9.34290844,248.93,248.85,0.03031634]
[1737792781084,0.03080964,248.93,248.85,0.03031634]
[1737792782488,4.0186,248.88,248.85,0.03031634]
[1737792782889,4.0186,248.88,248.78,9.3120988]
[1737792783491,4.0186,248.88,248.78,13.3321988]
[1737792783988,10.5754988,248.95,248.81,0.02748913]
[1737792783989,0.02970557,248.85,248.81,0.02748913]
[1737792784188,9.3120988,248.92,248.81,0.02748913]
[1737792784491,0.02781165,248.85,248.81,0.02748913]
[1737792785890,4.04691165,248.85,248.81,0.02748913]
[1737792786187,0.02781165,248.85,248.81,0.02748913]
[1737792786383,1.3827,248.84,248.81,0.02748913]
[1737792788992,1.3827,248.84,248.73,6.8408]
[1737792789491,1.3827,248.84,248.73,2.82]
[1737792789688,1.3827,248.84,248.75,9.3120988]
[1737792790084,1.3827,248.84,248.77,0.02718708]
[1737792791489,1.3827,248.84,248.77,4.04748708]
[1737792791892,1.3827,248.84,248.77,0.02718708]
[1737792792895,1.3827,248.84,248.78,4.0201]
[1737792794196,1.3827,248.84,248.77,0.02718708]
[1737792796197,4.0197,248.81,248.77,0.02718708]
[1737792797402,4.0202,248.78,248.77,0.02718708]
[1737792797700,9.3120988,248.83,248.69,9.3120988]
[1737792798305,9.3120988,248.83,248.68,4.0217]
[1737792798701,0.02949826,248.78,248.73,0.03006677]
[1737792799907,4.04979826,248.78,248.73,0.03006677]
[1737792800199,0.02949826,248.78,248.73,0.03006677]
[1737792801702,9.3120988,248.77,248.62,12.1120988]
[1737792802107,1.3339,248.76,248.62,12.1120988]
[1737792802308,5.3544,248.76,248.68,4.0217]
[1737792802505,5.3544,248.76,248.65,9.3120988]
[1737792802711,1.3339,248.76,248.65,9.3120988]
[1737792802910,1.3339,248.76,248.62,2.8]
[1737792802911,0.02843133,248.73,248.68,9.34102163]
[1737792803314,0.02843133,248.73,248.71,4.0212]
[1737792804211,0.02843133,248.73,248.68,9.34102163]
[1737792805210,0.02843133,248.73,248.68,13.36262163]
[1737792805907,0.02843133,248.73,248.68,9.34102163]
[1737792806306,0.02843133,248.73,248.72,9.3120988]
[1737792806509,1.3497,248.82,248.73,4.0209]
[1737792806911,1.3497,248.82,248.74,4.0207]
[1737792807609,0.0262375,248.8,248.76,0.02744933]
[1737792810511,4.0461375,248.8,248.76,0.02744933]
[1737792810908,0.0262375,248.8,248.76,0.02744933]
[1737792814620,4.0202,248.78,248.76,0.02744933]
[1737792815811,0.0262375,248.8,248.76,0.02744933]
[1737792817318,4.02,248.79,248.76,0.02744933]
[1737792818023,0.0262375,248.8,248.76,0.02744933]
[1737792818224,4.0203,248.77,248.76,0.02744933]
[1737792820925,4.0201,248.79,248.76,0.02744933]
[1737792821328,5.98159556,248.8,248.76,0.02744933]
[1737792821626,4.0203,248.78,248.76,0.02744933]
[1737792822741,0.0262375,248.8,248.76,0.02744933]
[1737792822927,4.02,248.79,248.76,0.02744933]
[1737792823631,0.0262375,248.8,248.76,0.02744933]
[1737792824219,0.0262375,248.8,248.77,5.95535806]
[1737792825328,0.0262375,248.8,248.79,5.95535806]
[1737792826629,12.64695806,248.92,248.79,5.95535806]
[1737792826833,12.64695806,248.92,248.85,5.95535806]
[1737792827230,6.6916,248.92,248.85,5.95535806]
[1737792827831,0.02948689,248.91,248.86,0.02831545]
[1737792828531,5.95535806,248.89,248.86,0.02831545]
[1737792828725,5.95535806,248.87,248.79,5.95535806]
[1737792828924,5.95535806,248.89,248.79,5.95535806]
[1737792829124,5.95535806,248.89,248.81,5.95535806]
[1737792829928,0.02573878,248.87,248.83,0.02692139]
[1737792830930,0.02573878,248.87,248.83,5.98227945]
[1737792831631,0.02573878,248.87,248.83,0.02692139]
[1737792834629,4.019,248.86,248.83,0.02692139]
[1737792834834,5.95535806,248.85,248.83,0.02692139]
[1737792835332,5.95535806,248.85,248.68,137.46229997]
[1737792835333,5.95535806,248.85,248.75,5.95535806]
[1737792835532,5.95535806,248.85,248.77,5.95535806]
[1737792835834,5.95535806,248.87,248.77,5.95535806]
[1737792836131,5.95535806,248.87,248.79,5.95535806]
[1737792836533,0.02595198,248.85,248.81,0.02986314]
[1737792837226,4.04495198,248.85,248.81,0.02986314]
[1737792837734,0.02595198,248.85,248.81,0.02986314]
[1737792838234,0.02595198,248.85,248.81,5.9852212]
[1737792842538,0.02595198,248.85,248.81,0.02986314]
[1737792845943,0.02595198,248.85,248.81,5.9852212]
[1737792846841,0.02595198,248.85,248.81,0.02986314]
[1737792849543,0.02595198,248.85,248.81,5.9852212]
[1737792850138,0.02595198,248.85,248.83,5.95535806]
[1737792851242,0.02595198,248.85,248.83,9.97465806]
[1737792851442,0.02595198,248.85,248.83,5.95535806]
[1737792852543,0.02595198,248.85,248.84,4.0192]
[1737792857245,0.02595198,248.85,248.83,5.95535806]
[1737792861747,0.02595198,248.85,248.83,9.97455806]
[1737792862152,0.02595198,248.85,248.83,5.95535806]
[1737792863055,0.02595198,248.85,248.81,5.9852212]
[1737792864951,0.02595198,248.85,248.83,5.95535806]
[1737792868155,0.02595198,248.85,248.84,4.0192]
[1737792870452,5.95535806,249.0,248.83,5.95535806]
[1737792870654,3.9779,249.09,248.94,5.95535806]
[1737792870855,5.95535806,249.04,248.94,5.95535806]
[1737792871757,0.02811584,249.01,248.97,0.02611053]
[1737792873358,4.04461584,249.01,248.97,0.02611053]
[1737792873858,0.02811584,249.01,248.97,0.02611053]
[1737792875963,0.02811584,249.01,248.98,5.95535806]
[1737792877063,0.02811584,249.01,248.97,0.02611053]
[1737792877265,5.9834739,249.01,248.97,0.02611053]
[1737792877562,2.6542,249.0,248.92,5.95535806]
[1737792877762,5.95535806,248.99,248.91,2.7]
[1737792878565,5.95535806,248.99,248.93,0.02886213]
[1737792879155,0.02811584,249.01,248.94,5.95535806]
[1737792879361,0.02811584,249.01,248.99,5.95535806]
[1737792881867,0.02811584,249.01,249.0,9.28244867]
[1737792884967,1.3463,249.15,249.05,4.0156]
[1737792885166,1.3463,249.15,249.05,13.29804867]
[1737792885370,1.3463,249.15,249.05,9.28244867]
[1737792885570,4.0144,249.14,249.05,9.28244867]
[1737792886070,0.02606602,249.12,249.07,0.02929364]
[1737792887772,4.0149,249.11,249.07,0.02929364]
[1737792888075,0.02606602,249.12,248.98,9.28244867]
[1737792888266,9.28244867,249.13,248.96,2.7]
[1737792888464,9.28244867,249.1,248.96,2.7]
[1737792888668,2.759,249.09,248.95,9.28244867]
[1737792889272,0.02921635,249.04,249.0,0.03064308]
[1737792889973,4.0162,249.03,249.0,0.03064308]
[1737792890169,0.02921635,249.04,249.0,0.03064308]
[1737792896775,0.02921635,249.04,248.95,9.28244867]
[1737792897773,0.02921635,249.04,248.97,0.02891162]
[1737792898072,4.04531635,249.04,248.97,0.02891162]
[1737792898678,0.02921635,249.04,248.97,0.02891162]
[1737792900475,4.04521635,249.04,248.97,0.02891162]
[1737792900972,0.02921635,249.04,248.97,0.02891162]
[1737792903172,0.02921635,249.04,248.98,4.0169]
[1737792903572,0.02921635,249.04,248.99,13.29914867]
[1737792903780,0.02921635,249.04,249.03,5.94138768]
[1737792905878,1.3639,249.09,249.03,5.94138768]
[1737792906077,1.3639,249.09,249.08,5.94138768]
[1737792906280,1.3899,249.13,249.08,5.94138768]
[1737792907279,1.42039101,249.13,249.08,5.9674892]
[1737792907677,0.03049101,249.13,249.1,5.94138768]
[1737792909878,0.03049101,249.13,249.12,5.94138768]
[1737792911075,5.94138768,249.28,249.12,5.94138768]
[1737792911286,5.94138768,249.28,249.2,5.94138768]
[1737792911582,5.93310267,249.29,249.2,5.93310267]
[1737792911772,4.0123,249.27,249.2,5.93310267]
[1737792912180,0.025398,249.26,249.21,0.02559051]
[1737792912484,5.93310267,249.25,249.21,0.02559051]
[1737792912686,1.3435,249.24,249.21,0.02559051]
[1737792913183,4.013,249.23,249.21,0.02559051]
[1737792913380,5.93310267,249.22,249.13,5.93310267]
[1737792913586,5.93310267,249.19,249.11,5.93310267]
[1737792913886,9.27810254,249.22,249.09,2.7]
[1737792914584,0.02749851,249.18,249.13,0.02822007]
[1737792915082,4.04119851,249.18,249.13,0.02822007]
[1737792916182,0.02749851,249.18,249.13,0.02822007]
[1737792917287,4.04119851,249.18,249.13,0.02822007]
[1737792917682,4.0143,249.15,249.13,0.02822007]
[1737792918487,4.0145,249.13,249.04,11.97754308]
[1737792918684,9.27754308,249.2,249.04,9.27754308]
[1737792919188,9.27754308,249.17,249.04,9.27754308]
[1737792919389,1.3446,249.16,249.01,9.27754308]
[1737792919584,9.30657712,249.13,248.98,9.27754308]
[1737792919783,1.3731,249.12,248.98,9.27754308]
[1737792919989,4.0156,249.07,248.98,13.29444308]
[1737792920383,4.0156,249.07,248.98,9.27754308]
[1737792920880,0.02980154,249.05,249.0,0.0278751]
[1737792923688,9.27754308,249.03,248.89,6.7182]
[1737792923890,1.3944,249.02,248.89,6.7182]
[1737792924094,1.3944,249.02,248.91,9.27754308]
[1737792924292,5.4107,249.02,248.91,9.27754308]
[1737792924593,1.3944,249.02,248.94,0.02733039]
[1737792924795,0.03002864,248.99,248.94,0.02733039]
[1737792925995,0.03002864,248.99,248.94,9.30487347]
[1737792928397,8.00837172,249.1,248.94,9.30487347]
[1737792928695,8.00837172,249.1,248.94,9.27754308]
[1737792928895,1.3817,249.09,248.94,9.27754308]
[1737792929195,4.0163,249.02,248.94,9.27754308]
[1737792929597,0.02566383,249.0,248.96,0.0258382]
[1737792930097,4.0168,248.99,248.96,0.0258382]
[1737792930395,0.02566383,249.0,248.96,0.0258382]
[1737792932893,4.017,248.98,248.96,0.0258382]
[1737792935805,4.0171,248.97,248.96,0.0258382]
[1737792936005,0.02566383,249.0,248.9,4.0181]
[1737792936608,9.30320691,249.0,248.9,4.0181]
[1737792936803,4.0174,248.95,248.88,4.0184]
[1737792937205,0.02646874,248.94,248.89,0.03084832]
[1737792937707,4.04406874,248.94,248.89,0.03084832]
[1737792937904,0.02646874,248.94,248.89,0.03084832]
[1737792938509,9.30401182,248.94,248.79,9.27754308]
[1737792938702,2.6593,248.93,248.79,9.27754308]
[1737792939406,4.0186,248.88,248.8,4.0197]
[1737792939802,2.6593,248.93,248.82,0.02149898]
[1737792939803,0.02884641,248.86,248.82,0.02149898]
[1737792940203,0.02884641,248.86,248.84,4.0192]
[1737792941012,0.02884641,248.86,248.83,9.27754308]
[1737792942506,0.02884641,248.86,248.83,13.29684308]
[1737792942712,0.02884641,248.86,248.83,9.27754308]
[1737792943613,0.02884641,248.86,248.83,13.29674308]
[1737792943815,0.02884641,248.86,248.83,9.27754308]
[1737792945107,0.02884641,248.86,248.82,0.02149898]
[1737792948619,0.02884641,248.86,248.84,4.0192]
[1737792952223,0.02884641,248.86,248.85,4.019]
[1737792953621,1.3852,248.97,248.83,9.27754308]
[1737792953828,2.5845,248.99,248.91,9.27754308]
[1737792954026,9.27754308,249.14,248.98,9.27754308]
[1737792954227,1.306,249.13,248.98,9.27754308]
[1737792954427,3.9559,249.13,248.98,9.27754308]
[1737792954930,0.02696551,249.08,249.03,0.02627846]
[1737792957219,0.02696551,249.08,249.06,4.0156]
[1737792957827,9.27754308,249.21,249.05,11.95754308]
[1737792958129,9.27754308,249.21,249.11,4.0147]
[1737792958320,9.27754308,249.21,249.05,11.95754308]
[1737792959023,0.02627347,249.15,249.11,0.02656601]
[1737792962034,0.02627347,249.15,249.13,13.29194308]
[1737792965439,1.3038,249.28,249.18,4.0137]
[1737792965935,1.3038,249.28,249.16,9.27754308]
[1737792966137,1.2752,249.33,249.2,9.27754308]
[1737792966336,1.2752,249.33,249.23,9.27754308]
[1737792966537,0.0280662,249.3,249.26,0.02839586]
[1737792973542,4.0125,249.26,249.18,4.0136]
[1737792973846,9.27754308,249.3,249.17,9.27754308]
[1737792974040,10.55274308,249.33,249.17,9.27754308]
[1737792974745,0.02922215,249.27,249.23,0.02580143]
[1737792976143,0.02922215,249.27,249.23,4.03870143]
[1737792976346,0.02922215,249.27,249.23,0.02580143]
[1737792978544,0.02922215,249.27,249.23,9.30334451]
[1737792978753,0.02922215,249.27,249.26,9.27754308]
[1737792981241,2.215e-05,249.27,249.26,9.27754308]
[1737792981446,2.6215,249.45,249.3,4.0117]
[1737792981646,2.6215,249.45,249.31,9.27754308]
[1737792982651,0.03048497,249.4,249.36,0.03023274]
[1737792982851,9.20542805,249.46,249.36,0.03023274]
[1737792983250,4.01,249.41,249.36,0.03023274]
[1737792983852,9.27754308,249.49,249.36,0.03023274]
[1737792984051,9.27754308,249.49,249.34,9.27754308]
[1737792984052,0.02784717,249.41,249.34,9.27754308]
[1737792984252,0.02784717,249.41,249.4,0.03058754]
[1737792984453,0.02784717,249.41,249.34,9.27754308]
[1737792984649,0.02784717,249.41,249.38,0.02955267]
[1737792987656,0.02784717,249.41,249.39,4.0103]
[1737792989161,0.02784717,249.41,249.4,9.27754308]
[1737792989360,0.14778,249.53,249.43,4.0097]
[1737792990473,4.03813304,249.5,249.46,0.02995284]
[1737792990767,0.02943304,249.5,249.46,0.02995284]
[1737792992368,4.0087,249.49,249.46,0.02995284]
[1737792992967,0.02943304,249.5,249.46,0.02995284]
[1737792996564,4.03803304,249.5,249.46,0.02995284]
[1737792996867,0.02943304,249.5,249.46,0.02995284]
[1737792997771,0.02943304,249.5,249.34,9.27754308]
[1737792997971,9.27754308,249.45,249.34,2.74]
[1737792998169,9.27754308,249.45,249.31,9.27754308]
[1737792998669,9.27754308,249.42,249.25,14.61814308]
[1737792998974,0.02575794,249.36,249.31,0.02684709]
[1737792999363,4.0112,249.34,249.31,0.02684709]
[1737793000173,4.0113,249.33,249.31,0.02684709]
[1737793000469,9.27754308,249.32,249.16,9.27754308]
[1737793000666,9.27754308,249.29,249.15,137.46229997]
[1737793001174,11.85034308,249.32,249.16,9.27754308]
[1737793001477,0.02753472,249.26,249.22,0.03020013]
[1737793001666,9.3050778,249.26,249.15,137.46229997]
[1737793001974,0.02753472,249.26,249.13,9.27754308]
[1737793002170,0.02753472,249.26,249.16,9.27754308]
[1737793002675,0.02753472,249.26,249.17,4.0138]
[1737793002877,0.02753472,249.26,249.19,9.30604356]
[1737793004170,0.02753472,249.26,249.22,9.27754308]
[1737793004369,0.02753472,249.26,249.25,9.27754308]
[1737793004671,2.6898,249.4,249.25,16.11004308]
[1737793004672,6.7001,249.4,249.25,16.11004308]
[1737793004970,2.6898,249.4,249.28,9.27754308]
[1737793005170,4.0117,249.31,249.22,9.27754308]